bitfinex/quotes_BTCUSD_20250608
["timestamp","ask_amount","ask_price","bid_price","bid_amount"]
[1749376075251,1.22045289,105240.0,105230.0,0.8944]
[1749376075408,1.21380407,105240.0,105230.0,0.90331075]
[1749376075604,1.22045289,105240.0,105230.0,0.90331075]
[1749376076015,1.21380407,105240.0,105230.0,0.90331075]
[1749376076319,1.22045289,105240.0,105230.0,0.90331075]
[1749376076938,1.22045289,105240.0,105230.0,0.8944]
[1749376077112,1.22045289,105240.0,105230.0,0.90331075]
[1749376077320,1.22045289,105240.0,105230.0,0.50263075]
[1749376077519,1.2204529,105240.0,105230.0,0.90311075]
[1749376078674,1.2204529,105240.0,105230.0,0.8942]
[1749376078932,1.21380407,105240.0,105230.0,0.90311075]
[1749376079133,1.2204529,105240.0,105230.0,0.90311075]
[1749376079262,1.23647171,105240.0,105230.0,0.8942]
[1749376079672,1.24312054,105240.0,105230.0,0.90311075]
[1749376080109,1.23647171,105240.0,105230.0,0.90311075]
[1749376080315,1.24312054,105240.0,105230.0,0.90311075]
[1749376080749,1.23647171,105240.0,105230.0,0.90311075]
[1749376081059,1.23647171,105240.0,105230.0,0.90303075]
[1749376081264,1.24312053,105240.0,105230.0,0.90303075]
[1749376082322,1.23647171,105240.0,105230.0,0.89412]
[1749376082524,1.24312056,105240.0,105230.0,0.89412]
[1749376082731,1.24312056,105240.0,105230.0,0.90303076]
[1749376082963,1.24312054,105240.0,105230.0,0.89412]
[1749376083180,1.24312054,105240.0,105230.0,0.90303076]
[1749376083365,1.24312054,105240.0,105230.0,0.50263076]
[1749376083683,1.23647171,105240.0,105230.0,0.90295076]
[1749376083904,1.24312054,105240.0,105230.0,0.90295076]
[1749376084142,1.24312054,105240.0,105230.0,0.49372]
[1749376084386,1.29312054,105240.0,105230.0,0.50263076]
[1749376084632,1.29312054,105240.0,105230.0,0.90295076]
[1749376084877,1.28647171,105240.0,105230.0,0.89404]
[1749376085088,1.28647171,105240.0,105230.0,0.90295082]
[1749376085089,1.29312042,105240.0,105230.0,0.90295082]
[1749376085312,1.29312042,105240.0,105230.0,0.90294981]
[1749376085752,1.28647171,105240.0,105230.0,0.89404]
[1749376085966,1.29311969,105240.0,105230.0,0.90294982]
[1749376086186,1.28647171,105240.0,105230.0,0.90294982]
[1749376086429,1.29311969,105240.0,105230.0,0.90294982]
[1749376086858,1.39311969,105240.0,105230.0,0.90294982]
[1749376087505,1.38647171,105240.0,105230.0,0.89404]
[1749376087726,1.39311969,105240.0,105230.0,0.89404]
[1749376087987,1.39311969,105240.0,105230.0,0.90294982]
[1749376088261,1.38647171,105240.0,105230.0,0.89404]
[1749376088522,1.38647171,105240.0,105230.0,0.90294982]
[1749376088523,1.24311969,105240.0,105230.0,0.90294982]
[1749376088801,1.24311969,105240.0,105230.0,0.89404]
[1749376089025,1.24311942,105240.0,105230.0,0.89404]
[1749376089267,1.24311942,105240.0,105230.0,0.90294946]
[1749376089501,1.23647171,105240.0,105230.0,0.90294946]
[1749376089721,1.24311942,105240.0,105230.0,0.89404]
[1749376089936,1.23647171,105240.0,105230.0,0.89404]
[1749376090211,1.23647171,105240.0,105230.0,0.90294946]
[1749376090458,1.23647171,105240.0,105230.0,0.89404]
[1749376090648,1.23647171,105240.0,105230.0,0.90294946]
[1749376090893,1.25262142,105240.0,105230.0,1.09360267]
[1749376091118,1.25262142,105240.0,105230.0,0.90354299]
[1749376091119,1.14957423,105240.0,105230.0,0.90354299]
[1749376091354,1.14957423,105240.0,105230.0,1.10310575]
[1749376091568,1.14957423,105240.0,105230.0,1.11201473]
[1749376091779,1.14957423,105240.0,105230.0,1.10310575]
[1749376091992,1.14957423,105240.0,105230.0,1.11260856]
[1749376092202,1.14957423,105240.0,105230.0,1.11201473]
[1749376092633,1.14007223,105240.0,105230.0,1.10251177]
[1749376092853,1.14007223,105240.0,105230.0,1.10310575]
[1749376093277,1.14007223,105240.0,105230.0,1.11260856]
[1749376093500,1.14007223,105240.0,105230.0,1.10310575]
[1749376093969,1.14007223,105240.0,105230.0,1.11201467]
[1749376094179,1.14007223,105240.0,105230.0,1.10310575]
[1749376095021,1.14007223,105240.0,105230.0,1.11201467]
[1749376097190,0.95953215,105240.0,105230.0,1.10310575]
[1749376097401,1.10786721,105240.0,105230.0,0.90294892]
[1749376097620,1.10786721,105240.0,105230.0,1.08337986]
[1749376097912,1.10786721,105240.0,105230.0,1.10179165]
[1749376098139,1.10786721,105240.0,105230.0,1.09228855]
[1749376098353,1.09836549,105240.0,105230.0,0.90282299]
[1749376098568,1.09836549,105240.0,105230.0,0.91173161]
[1749376098784,1.09836549,105240.0,105230.0,1.10179147]
[1749376099000,1.09836549,105240.0,105230.0,1.10238575]
[1749376099438,1.09836549,105240.0,105230.0,1.11129437]
[1749376100071,1.11736921,105240.0,105230.0,1.12079709]
[1749376100521,1.11736921,105240.0,105230.0,1.11579709]
[1749376100738,1.11736921,105240.0,105230.0,1.1163911]
[1749376102160,1.11736921,105240.0,105230.0,1.12529972]
[1749376102492,1.11736921,105240.0,105230.0,1.1163911]
[1749376102795,1.11736921,105240.0,105230.0,1.12529963]
[1749376102999,1.11736921,105240.0,105230.0,1.13480217]
[1749376103520,1.11736921,105240.0,105230.0,1.12589364]
[1749376104693,1.14590721,105240.0,105230.0,1.13480207]
[1749376105207,1.14590721,105240.0,105230.0,1.12589364]
[1749376105976,1.14590721,105240.0,105230.0,1.1258931]
[1749376107900,1.14590721,105240.0,105230.0,1.11639065]
[1749376108223,1.14590721,105240.0,105230.0,1.12529909]
[1749376109348,1.14590721,105240.0,105230.0,1.11639065]
[1749376110160,1.14590721,105240.0,105230.0,1.12529263]
[1749376111105,1.14590721,105240.0,105230.0,1.11639065]
[1749376111515,1.14590721,105240.0,105230.0,1.12529168]
[1749376111730,1.14590721,105240.0,105230.0,1.11639065]
[1749376111933,1.14590721,105240.0,105230.0,1.12529068]
[1749376112337,0.94636332,105240.0,105230.0,1.13479304]
[1749376112649,0.95586468,105240.0,105230.0,1.13479304]
[1749376113022,0.95586468,105240.0,105230.0,1.12589301]
[1749376113182,0.96536668,105240.0,105230.0,1.13479329]
[1749376113425,1.15540848,105240.0,105230.0,1.12529093]
[1749376114538,1.15540848,105240.0,105230.0,1.12529141]
[1749376114708,1.14590712,105240.0,105230.0,1.12529141]
[1749376114955,1.14590712,105240.0,105230.0,1.11578887]
[1749376115162,1.2423066,105240.0,105230.0,1.11578887]
[1749376115372,1.2423066,105240.0,105230.0,1.11579002]
[1749376115584,1.2423066,105240.0,105230.0,1.11573428]
[1749376115794,1.14590712,105240.0,105230.0,1.11573428]
[1749376116549,1.14590712,105240.0,105230.0,1.10683237]
[1749376116877,1.14590712,105240.0,105230.0,1.11573496]
[1749376118304,1.14590712,105240.0,105230.0,1.10683237]
[1749376118698,1.14590712,105240.0,105230.0,1.11573496]
[1749376119164,1.14590712,105240.0,105230.0,1.11574185]
[1749376119816,1.20573213,105240.0,105230.0,1.10623927]
[1749376120043,1.13640549,105240.0,105230.0,1.09732974]
[1749376120476,1.13640549,105240.0,105230.0,1.10623927]
[1749376120757,1.13640549,105240.0,105230.0,1.09732974]
[1749376120968,1.13640549,105240.0,105230.0,1.10623927]
[1749376121692,1.13640549,105240.0,105230.0,1.10623932]
[1749376122347,1.13640549,105240.0,105230.0,1.09732974]
[1749376122812,1.13640549,105240.0,105230.0,1.10623932]
[1749376123341,1.12690359,105240.0,105230.0,1.10623932]
[1749376123800,1.12690359,105240.0,105230.0,1.0967366]
[1749376124272,1.12690359,105240.0,105230.0,1.08782702]
[1749376124565,1.12690359,105240.0,105230.0,1.0967366]
[1749376124793,1.11740159,105240.0,105230.0,1.0967366]
[1749376125215,1.11740159,105240.0,105230.0,0.60907234]
[1749376125847,1.11740159,105240.0,105230.0,0.61857515]
[1749376126050,1.11740159,105240.0,105230.0,0.60966557]
[1749376126259,1.11740159,105240.0,105230.0,0.61857515]
[1749376126875,1.11740159,105240.0,105230.0,0.61857519]
[1749376127291,1.11740159,105240.0,105230.0,0.62807791]
[1749376127506,1.11740159,105240.0,105230.0,0.61916829]
[1749376127718,1.11740159,105240.0,105230.0,0.62807791]
[1749376128337,1.11740159,105240.0,105230.0,0.63758054]
[1749376128578,1.11740159,105240.0,105230.0,0.64708308]
[1749376128789,1.11740159,105240.0,105230.0,0.63817346]
[1749376129000,0.93686169,105240.0,105230.0,0.64708311]
[1749376129208,0.95586532,105240.0,105230.0,0.63817256]
[1749376129419,1.15540921,105240.0,105230.0,0.63757985]
[1749376129654,0.96536741,105240.0,105230.0,0.63817256]
[1749376129868,0.96536741,105240.0,105230.0,0.64708221]
[1749376130089,1.15540921,105240.0,105230.0,0.6280774]
[1749376130296,1.15540921,105240.0,105230.0,0.61857486]
[1749376130510,1.15540921,105240.0,105230.0,0.60966521]
[1749376130724,1.15540921,105240.0,105230.0,0.61857486]
[1749376131139,1.15540921,105240.0,105230.0,0.62807731]
[1749376131581,1.14590758,105240.0,105230.0,0.61857486]
[1749376132128,1.14590758,105240.0,105230.0,0.61857489]
[1749376132736,1.14590758,105240.0,105230.0,0.60966521]
[1749376132951,1.14590758,105240.0,105230.0,0.61857489]
[1749376133148,1.14590758,105240.0,105230.0,0.60966521]
[1749376133356,1.14590758,105240.0,105230.0,0.61857489]
[1749376133777,0.93686142,105240.0,105230.0,0.61857489]
[1749376133996,0.95586468,105240.0,105230.0,0.62807725]
[1749376134422,0.95586468,105240.0,105230.0,0.61916757]
[1749376135259,0.96536668,105240.0,105230.0,0.61916757]
[1749376135854,0.97486877,105240.0,105230.0,0.61916757]
[1749376136893,1.15540921,105240.0,105230.0,0.21006521]
[1749376137098,1.15540921,105240.0,105230.0,0.60838521]
[1749376137530,1.15540921,105240.0,105230.0,0.61788775]
[1749376140039,1.15540921,105240.0,105230.0,0.62739011]
[1749376141124,1.15540921,105240.0,105230.0,0.61788775]
[1749376142709,1.15540921,105240.0,105230.0,0.6273902]
[1749376144198,1.15540921,105240.0,105230.0,0.61788775]
[1749376144408,0.92735979,105240.0,105230.0,0.6273902]
[1749376144615,0.52692179,105240.0,105230.0,0.63689256]
[1749376146104,0.53642306,105240.0,105230.0,0.63689256]
[1749376146315,0.52692179,105240.0,105230.0,0.63689256]
[1749376149092,0.54242179,105240.0,105230.0,0.63689256]
[1749376149740,0.52692179,105240.0,105230.0,0.63689256]
[1749376158117,0.55832179,105240.0,105230.0,0.63689256]
[1749376159040,0.55832179,105240.0,105230.0,0.73329204]
[1749376162669,0.55832179,105240.0,105230.0,1.22597204]
[1749376168760,0.92682723,105240.0,105230.0,0.58916]
[1749376168959,1.11686903,105240.0,105230.0,1.09040285]
[1749376169180,1.11686903,105240.0,105230.0,0.69324285]
[1749376169384,1.10736749,105240.0,105230.0,1.09986575]
[1749376169769,1.10736749,105240.0,105230.0,1.10936856]
[1749376169969,1.10736749,105240.0,105230.0,0.69324285]
[1749376170170,1.09786568,105240.0,105230.0,1.09036285]
[1749376170446,1.09786568,105240.0,105230.0,0.69324285]
[1749376170638,1.08836359,105240.0,105230.0,0.8908]
[1749376171682,1.08836359,105240.0,105230.0,1.08085986]
[1749376171887,1.08836359,105240.0,105230.0,1.09036276]
[1749376172934,1.08836359,105240.0,105230.0,0.001]
[1749376173144,1.18476307,105240.0,105230.0,0.001]
[1749376173349,1.18476307,105240.0,105230.0,0.3026]
[1749376173558,1.18476307,105240.0,105230.0,0.31151003]
[1749376173763,1.18476307,105240.0,105230.0,0.3026]
[1749376173956,1.18476307,105240.0,105230.0,0.31151002]
[1749376174171,1.18476307,105240.0,105230.0,0.3026]
[1749376174325,1.18476307,105240.0,105230.0,0.31147003]
[1749376174734,1.19141115,105240.0,105230.0,0.31147006]
[1749376174912,1.19141123,105240.0,105230.0,0.30256]
[1749376175111,1.21995323,105240.0,105230.0,0.30256]
[1749376175337,1.21995323,105240.0,105230.0,0.31147017]
[1749376175691,1.21995322,105240.0,105230.0,0.31147017]
[1749376175832,1.21995322,105240.0,105230.0,0.30256]
[1749376176030,1.3163527,105240.0,105230.0,0.00991019]
[1749376176241,1.21330507,105240.0,105230.0,0.30252]
[1749376176451,1.21995255,105240.0,105230.0,0.31143018]
[1749376176689,1.21995245,105240.0,105230.0,0.30252]
[1749376176861,1.21995246,105240.0,105230.0,0.30252]
[1749376177268,1.21330507,105240.0,105230.0,0.30252]
[1749376177851,1.21995241,105240.0,105230.0,0.30252]
[1749376178100,1.21330507,105240.0,105230.0,0.31143024]
[1749376178299,1.21995239,105240.0,105230.0,0.30252]
[1749376178500,1.21995239,105240.0,105230.0,0.31143025]
[1749376178698,1.21995238,105240.0,105230.0,0.31143025]
[1749376178905,1.21995238,105240.0,105230.0,0.30252]
[1749376179238,1.21995253,105240.0,105230.0,0.31143025]
[1749376179447,1.2199527,105240.0,105230.0,0.00991025]
[1749376179657,1.21330507,105240.0,105230.0,0.398]
[1749376180686,1.21330507,105240.0,105230.0,0.001]
[1749376180904,1.21330507,105240.0,105230.0,0.30244]
[1749376181109,1.11690559,105240.0,105230.0,0.30244]
[1749376181822,1.11690559,105240.0,105230.0,0.49249986]
[1749376182036,1.11690559,105240.0,105230.0,0.52037882]
[1749376182221,1.12640768,105240.0,105230.0,0.52988136]
[1749376182460,1.13590968,105240.0,105230.0,0.52988136]
[1749376182667,1.1454114,105240.0,105230.0,0.51150557]
[1749376183087,1.13590968,105240.0,105230.0,0.51150557]
[1749376183457,1.13590968,105240.0,105230.0,0.5108761]
[1749376183676,0.6058666,105240.0,105230.0,0.6150198]
[1749376183880,0.93632804,105240.0,105230.0,0.60614655]
[1749376184104,1.13587256,105240.0,105230.0,0.53938362]
[1749376184300,1.13587256,105240.0,105230.0,0.53051083]
[1749376189774,0.94583076,105240.0,105230.0,0.53051083]
[1749376192292,1.13587256,105240.0,105230.0,0.53051083]
[1749376192714,0.94583076,105240.0,105230.0,0.54001319]
[1749376194430,0.94583067,105240.0,105230.0,0.54001319]
[1749376194847,0.94583122,105240.0,105230.0,0.54001319]
[1749376195703,0.94583122,105240.0,105230.0,0.23857319]
[1749376195975,0.94583122,105240.0,105230.0,0.63485319]
[1749376197508,1.13587302,105240.0,105230.0,0.62535083]
[1749376197929,0.94583122,105240.0,105230.0,0.63485319]
[1749376198956,0.94583122,105240.0,105230.0,0.62531083]
[1749376199812,1.10736768,105240.0,105230.0,0.09612]
[1749376200021,1.10736768,105240.0,105230.0,0.59676276]
[1749376200237,1.10736768,105240.0,105230.0,0.61576829]
[1749376200465,0.89832179,105240.0,105230.0,0.70266505]
[1749376200676,0.89832179,105240.0,105230.0,0.72167004]
[1749376200886,0.90782315,105240.0,105230.0,0.72167004]
[1749376201112,0.9173246,105240.0,105230.0,0.72167004]
[1749376202183,0.94582967,105240.0,105230.0,0.72163004]
[1749376202403,0.93632777,105240.0,105230.0,0.72163004]
[1749376206729,0.93632777,105240.0,105230.0,0.72155004]
[1749376206950,0.94582949,105240.0,105230.0,0.72155004]
[1749376207286,0.9173246,105240.0,105230.0,0.72155004]
[1749376207505,0.92682623,105240.0,105230.0,0.72155004]
[1749376207725,0.9173246,105240.0,105230.0,0.72155004]
[1749376207929,0.92682623,105240.0,105230.0,0.72155004]
[1749376208237,0.9173246,105240.0,105230.0,0.72155004]
[1749376208429,0.92682623,105240.0,105230.0,0.72155004]
[1749376209140,0.93632795,105240.0,105230.0,0.72155004]
[1749376211320,0.93632795,105240.0,105230.0,1.21427004]
[1749376213267,0.92682623,105240.0,105230.0,1.21427004]
[1749376213674,0.93632804,105240.0,105230.0,1.21427004]
[1749376215798,0.92682623,105240.0,105230.0,1.21427004]
[1749376215981,0.93632804,105240.0,105230.0,1.21427004]
[1749376216217,0.92682623,105240.0,105230.0,1.21427004]
[1749376216864,0.93632804,105240.0,105230.0,1.21427004]
[1749376217065,0.93632795,105240.0,105230.0,1.21427004]
[1749376220516,0.94582985,105240.0,105230.0,1.21427004]
[1749376220641,0.93632795,105240.0,105230.0,1.21427004]
[1749376222994,0.92682623,105240.0,105230.0,1.21427004]
[1749376223196,0.93632795,105240.0,105230.0,1.21427004]
[1749376224051,0.94582976,105240.0,105230.0,1.21427004]
[1749376224256,0.92682623,105240.0,105230.0,1.21427004]
[1749376224531,0.93632795,105240.0,105230.0,1.21427004]
[1749376224761,0.92682623,105240.0,105230.0,1.21427004]
[1749376229433,0.93632795,105240.0,105230.0,1.21427004]
[1749376231788,0.92682623,105240.0,105230.0,1.21427004]
[1749376237754,0.9173246,105240.0,105230.0,1.21427004]
[1749376238184,0.91732451,105240.0,105230.0,1.21427004]
[1749376241801,0.90782306,105240.0,105230.0,1.21427004]
[1749376242011,0.89832179,105240.0,105230.0,1.21427004]
[1749376242221,0.90782306,105240.0,105230.0,1.21427004]
[1749376242426,0.91732451,105240.0,105230.0,1.21427004]
[1749376242848,0.90782306,105240.0,105230.0,1.21427004]
[1749376243118,0.89832179,105240.0,105230.0,1.21427004]
[1749376243327,0.90782315,105240.0,105230.0,1.21427004]
[1749376243768,0.90782306,105240.0,105230.0,1.21427004]
[1749376243977,0.91732451,105240.0,105230.0,1.21427004]
[1749376244182,0.90782306,105240.0,105230.0,1.21427004]
[1749376244826,0.91732442,105240.0,105230.0,1.21427004]
[1749376245940,0.92682596,105240.0,105230.0,0.81819004]
[1749376246153,0.91732442,105240.0,105230.0,1.21331004]
[1749376246553,0.92682596,105240.0,105230.0,1.21331004]
[1749376248446,0.91732442,105240.0,105230.0,1.21331004]
[1749376249106,0.92682596,105240.0,105230.0,1.21331004]
[1749376250250,0.91732442,105240.0,105230.0,1.21331004]
[1749376250718,0.90782306,105240.0,105230.0,1.21331004]
[1749376251767,0.91732442,105240.0,105230.0,1.21331004]
[1749376252381,0.90782306,105240.0,105230.0,1.21331004]
[1749376252597,0.91732442,105240.0,105230.0,1.21331004]
[1749376253647,0.90782306,105240.0,105230.0,1.21331004]
[1749376254138,0.91732442,105240.0,105230.0,1.21331004]
[1749376255609,0.90782306,105240.0,105230.0,1.21331004]
[1749376257943,0.89832179,105240.0,105230.0,1.21331004]
[1749376258166,0.55832179,105240.0,105230.0,1.21331004]
[1749376258412,0.54312179,105240.0,105230.0,1.21331004]
[1749376258840,0.52692179,105240.0,105230.0,1.21331004]
[1749376259055,0.52392179,105240.0,105230.0,1.21231004]
[1749376259273,0.52192179,105240.0,105230.0,1.21231004]
[1749376259496,0.53982179,105240.0,105230.0,1.21331004]
[1749376259722,0.54082179,105240.0,105230.0,1.21331004]
[1749376260615,0.55712179,105240.0,105230.0,1.21331004]
[1749376271156,0.54082179,105240.0,105230.0,1.66036157]
[1749376271303,0.54082179,105240.0,105230.0,1.21331004]
[1749376271904,0.55732179,105240.0,105230.0,1.86036157]
[1749376272110,0.47729657,105240.0,105230.0,1.86036157]
[1749376272325,0.52492179,105240.0,105230.0,1.86036157]
[1749376274259,0.52492179,105240.0,105230.0,1.87490242]
[1749376274462,0.47729657,105240.0,105230.0,1.87490242]
[1749376274688,0.52492179,105240.0,105230.0,1.87490242]
[1749376274920,0.52492179,105240.0,105230.0,2.27490242]
[1749376275118,0.52492179,105240.0,105230.0,1.87490242]
[1749376275747,0.52492179,105240.0,105230.0,2.27490242]
[1749376276469,0.52492179,105240.0,105230.0,2.82230242]
[1749376282571,0.52492179,105240.0,105230.0,2.42230242]
[1749376283004,0.52492179,105240.0,105230.0,2.82230242]
[1749376283658,0.52492179,105240.0,105230.0,2.37525089]
[1749376283871,0.55662179,105240.0,105230.0,2.82230242]
[1749376284095,0.55662179,105240.0,105230.0,1.95935004]
[1749376284323,0.55662179,105240.0,105230.0,1.65979004]
[1749376284540,0.55662179,105240.0,105230.0,1.95935004]
[1749376288083,0.55662179,105240.0,105230.0,1.95931004]
[1749376288299,0.55662179,105240.0,105230.0,1.76559004]
[1749376288530,0.55662179,105240.0,105230.0,2.15931004]
[1749376290276,0.55662179,105240.0,105230.0,1.95927004]
[1749376291102,0.55662179,105240.0,105230.0,2.40632157]
[1749376308349,0.55662179,105240.0,105230.0,1.85892157]
[1749376319538,0.55662179,105240.0,105230.0,1.01819004]
[1749376319794,0.55662179,105240.0,105230.0,1.41111004]
[1749376322241,0.55662179,105240.0,105230.0,1.21103004]
[1749376330689,0.55662179,105240.0,105230.0,1.21091004]
[1749376332816,0.89662179,105240.0,105230.0,1.21091004]
[1749376340209,0.89662179,105240.0,105230.0,1.21075004]
[1749376344106,0.90612315,105240.0,105230.0,1.21075004]
[1749376344468,0.90612315,105240.0,105230.0,1.21035004]
[1749376345670,0.9156246,105240.0,105230.0,1.21035004]
[1749376345913,0.9156246,105240.0,105230.0,0.81819004]
[1749376346176,0.92512632,105240.0,105230.0,1.21023004]
[1749376346605,0.93462813,105240.0,105230.0,1.21023004]
[1749376346957,0.92512632,105240.0,105230.0,1.21023004]
[1749376347568,0.92512623,105240.0,105230.0,1.21023004]
[1749376349010,0.9156246,105240.0,105230.0,1.21023004]
[1749376349204,0.92512623,105240.0,105230.0,1.21023004]
[1749376350167,0.93462795,105240.0,105230.0,1.11379056]
[1749376350600,0.93462804,105240.0,105230.0,1.11379056]
[1749376350804,0.94412994,105240.0,105230.0,1.11379056]
[1749376354982,0.93462804,105240.0,105230.0,1.11379056]
[1749376355419,0.92512623,105240.0,105230.0,1.11379056]
[1749376355620,0.93462804,105240.0,105230.0,1.11379056]
[1749376356228,0.94412994,105240.0,105230.0,1.11379056]
[1749376356658,0.93462804,105240.0,105230.0,1.11379056]
[1749376359121,0.92512623,105240.0,105230.0,1.11379056]
[1749376359467,0.93462804,105240.0,105230.0,1.11379056]
[1749376361304,0.92512623,105240.0,105230.0,1.11379056]
[1749376363867,0.93462804,105240.0,105230.0,1.11379056]
[1749376364028,0.92512623,105240.0,105230.0,1.11379056]
[1749376365839,0.92512632,105240.0,105230.0,1.11379056]
[1749376366801,0.92512632,105240.0,105230.0,1.11225994]
[1749376367100,0.9156246,105240.0,105230.0,1.11225994]
[1749376367253,0.92512623,105240.0,105230.0,1.11225994]
[1749376370448,0.92512623,105240.0,105230.0,0.72017994]
[1749376370664,0.92512623,105240.0,105230.0,1.11189994]
[1749376373811,0.93462804,105240.0,105230.0,1.11189994]
[1749376375480,0.92512623,105240.0,105230.0,1.11189994]
[1749376375696,0.93462804,105240.0,105230.0,1.11189994]
[1749376376711,0.93462795,105240.0,105230.0,1.11189994]
[1749376381289,0.93462795,105240.0,105230.0,0.72017994]
[1749376381602,0.93462795,105240.0,105230.0,1.11141994]
[1749376383045,0.92512632,105240.0,105230.0,1.11141994]
[1749376383735,0.92512623,105240.0,105230.0,1.11141994]
[1749376384986,0.9156246,105240.0,105230.0,1.11141994]
[1749376385190,0.90612306,105240.0,105230.0,1.11141994]
[1749376385595,0.91562451,105240.0,105230.0,1.11141994]
[1749376386009,0.90612306,105240.0,105230.0,1.11141994]
[1749376386210,0.91562451,105240.0,105230.0,1.11141994]
[1749376393181,0.89662179,105240.0,105230.0,1.20781942]
[1749376397408,0.86492179,105240.0,105230.0,1.20781942]
[1749376398481,0.86492179,105240.0,105230.0,1.65487095]
[1749376398681,0.86492179,105240.0,105230.0,1.85487095]
[1749376402061,0.88022179,105240.0,105230.0,1.85487095]
[1749376403035,0.89632179,105240.0,105230.0,1.40781942]
[1749376406268,0.89632179,105240.0,105230.0,1.85487095]
[1749376406851,0.86492179,105240.0,105230.0,1.85487095]
[1749376407706,0.88032179,105240.0,105230.0,1.85487095]
[1749376407854,0.89532179,105240.0,105230.0,1.85487095]
[1749376410504,0.88032179,105240.0,105230.0,1.85487095]
[1749376410820,0.89532179,105240.0,105230.0,1.85487095]
[1749376413045,0.88032179,105240.0,105230.0,1.85487095]
[1749376413735,0.89532179,105240.0,105230.0,1.85487095]
[1749376418024,0.47729657,105240.0,105230.0,1.8694118]
[1749376418633,0.47729657,105240.0,105230.0,2.2694118]
[1749376427676,0.47729657,105240.0,105230.0,1.82236027]
[1749376427886,0.47729657,105240.0,105230.0,2.2694118]
[1749376428998,0.49339657,105240.0,105230.0,2.2694118]
[1749376430551,0.47729657,105240.0,105230.0,2.2694118]
[1749376430757,0.47729657,105240.0,105230.0,2.27894118]
[1749376432313,0.51029657,105240.0,105230.0,2.27894118]
[1749376432650,0.51029657,105240.0,105230.0,2.2694118]
[1749376434222,0.51029657,105240.0,105230.0,2.27898072]
[1749376435283,0.51029657,105240.0,105230.0,2.82630072]
[1749376435891,0.51029657,105240.0,105230.0,2.8167318]
[1749376436107,0.51029657,105240.0,105230.0,2.4254918]
[1749376436266,0.51029657,105240.0,105230.0,2.8150918]
[1749376440639,0.51029657,105240.0,105230.0,2.4254918]
[1749376440800,0.51029657,105240.0,105230.0,2.8150118]
[1749376443021,0.51029657,105240.0,105230.0,2.8149718]
[1749376446319,0.47729657,105240.0,105230.0,2.89094134]
[1749376446529,0.50799657,105240.0,105230.0,2.89094134]
[1749376446791,0.50799657,105240.0,105230.0,2.44388981]
[1749376446997,0.50599657,105240.0,105230.0,2.88994134]
[1749376447201,0.50499657,105240.0,105230.0,2.88994134]
[1749376447405,0.50599657,105240.0,105230.0,2.88994134]
[1749376449153,0.50599657,105240.0,105230.0,2.88986134]
[1749376451716,0.50599657,105240.0,105230.0,2.50046134]
[1749376451935,0.50599657,105240.0,105230.0,2.88982134]
[1749376452571,0.50599657,105240.0,105230.0,1.65340981]
[1749376452786,0.50599657,105240.0,105230.0,1.63886896]
[1749376452991,0.50599657,105240.0,105230.0,2.39927095]
[1749376453205,0.50599657,105240.0,105230.0,2.4138118]
[1749376454174,0.50599657,105240.0,105230.0,2.8138118]
[1749376454371,0.50599657,105240.0,105230.0,1.96676027]
[1749376454616,0.50599657,105240.0,105230.0,2.4138118]
[1749376454830,0.50599657,105240.0,105230.0,2.8138118]
[1749376456156,0.50480349,105240.0,105230.0,2.5171718]
[1749376456357,0.50480349,105240.0,105230.0,2.8137718]
[1749376458746,0.50480349,105240.0,105230.0,2.36668027]
[1749376459262,0.50480349,105240.0,105230.0,2.8137318]
[1749376465559,0.50480349,105240.0,105230.0,2.4244918]
[1749376465688,0.50480349,105240.0,105230.0,2.8136518]
[1749376466406,0.50480349,105240.0,105230.0,2.4136518]
[1749376466917,0.50480349,105240.0,105230.0,2.8136518]
[1749376468469,0.50480349,105240.0,105230.0,2.36660027]
[1749376468702,0.50480349,105240.0,105230.0,2.8136518]
[1749376470518,0.50480349,105240.0,105230.0,2.4136518]
[1749376470958,0.50480349,105240.0,105230.0,2.8136518]
[1749376476703,0.50480349,105240.0,105230.0,2.77205928]
[1749376490080,0.50480349,105240.0,105230.0,2.77169928]
[1749376494112,0.50480349,105240.0,105230.0,2.38289928]
[1749376494309,0.50480349,105240.0,105230.0,2.77133928]
[1749376498229,0.50480349,105240.0,105230.0,2.77105928]
[1749376510752,0.50480349,105240.0,105230.0,2.32400775]
[1749376511171,0.50480349,105240.0,105230.0,2.77105928]
[1749376518158,0.50480349,105240.0,105230.0,2.38289928]
[1749376518430,0.50480349,105240.0,105230.0,2.77073928]
[1749376522121,0.50480349,105240.0,105230.0,2.38289928]
[1749376522299,0.50480349,105240.0,105230.0,2.77069928]
[1749376536980,0.50480349,105240.0,105230.0,2.32364775]
[1749376537388,0.50480349,105240.0,105230.0,2.77069928]
[1749376539189,0.50480349,105240.0,105230.0,2.38289928]
[1749376539408,0.50480349,105240.0,105230.0,2.77017928]
[1749376541433,0.50480349,105240.0,105230.0,2.38289928]
[1749376541642,0.50480349,105240.0,105230.0,2.77013928]
[1749376543376,0.50480349,105240.0,105230.0,2.38289928]
[1749376543596,0.50480349,105240.0,105230.0,2.77009928]
[1749376548949,0.50480349,105240.0,105230.0,2.38289928]
[1749376549190,0.50480349,105240.0,105230.0,2.77001928]
[1749376555454,0.50480349,105240.0,105230.0,2.69001928]
[1749376573101,0.55242871,105240.0,105230.0,1.4413069]
[1749376573337,0.57143152,105240.0,105230.0,1.0805069]
[1749376573758,0.57143161,105240.0,105230.0,1.0805069]
[1749376573961,0.56193007,105240.0,105230.0,1.0805069]
[1749376574169,0.56193016,105240.0,105230.0,1.0805069]
[1749376574375,0.55242871,105240.0,105230.0,1.0805069]
[1749376595103,0.55242871,105240.0,105230.0,0.6939469]
[1749376595304,0.55242871,105240.0,105230.0,1.0800269]
[1749376620048,0.55242871,105240.0,105230.0,1.52707843]
[1749376620242,0.50480349,105240.0,105230.0,1.52707843]
[1749376620491,0.55242871,105240.0,105230.0,1.52707843]
[1749376624763,0.55242871,105240.0,105230.0,1.0800269]
[1749376624974,0.55242871,105240.0,105230.0,1.52707843]
[1749376625159,0.55242871,105240.0,105230.0,1.0800269]
[1749376630027,0.55242871,105240.0,105230.0,0.6939469]
[1749376630237,0.55242871,105240.0,105230.0,1.0793469]
[1749376638609,0.55242871,105240.0,105230.0,1.0792269]
[1749376639308,0.56192998,105240.0,105230.0,1.0792269]
[1749376639556,0.55242871,105240.0,105230.0,1.0792269]
[1749376640837,0.55242871,105240.0,105230.0,1.52627843]
[1749376646064,0.55242871,105240.0,105230.0,1.0792269]
[1749376652612,0.55242871,105240.0,105230.0,1.52627843]
[1749376653017,0.55242871,105240.0,105230.0,1.54081928]
[1749376665629,0.55242871,105240.0,105230.0,1.74081928]
[1749376681441,0.55242871,105240.0,105230.0,1.29300775]
[1749376681594,0.55242871,105240.0,105230.0,1.74005928]
[1749376681801,0.55242871,105240.0,105230.0,1.29300775]
[1749376682841,0.55242871,105240.0,105230.0,1.0939469]
[1749376683040,0.55242871,105240.0,105230.0,1.2782669]
[1749376683440,0.56193016,105240.0,105230.0,1.2782669]
[1749376683811,0.5714317,105240.0,105230.0,1.2782669]
[1749376684016,0.56193016,105240.0,105230.0,1.2782669]
[1749376684222,0.56193007,105240.0,105230.0,1.2782669]
[1749376684981,0.56193007,105240.0,105230.0,1.2782269]